[Event "Titled Tuesday Blitz May 30 Late 2023"]
[White "Estrada Nieto, Julian"]
[Black "Vlassov, Nikolai"]
[WhiteFideId "5101018"]
[BlackFideId "4103360"]
[WhiteElo "2161"]
[BlackElo "2324"]
[Result "0-1"]
[Round "08"]
[TimeControl "180+2"]
[Date "2023.05.31"]
[WhiteClock "0:00:02"]
[BlackClock "0:00:25"]

1. d4 {[%clk 0:03:00]}  Nf6 {[%clk 0:02:59]} 2. Nf3 {[%clk 0:03:00]}  e6 {[%clk 0:02:59]} 3. g3 {[%clk 0:02:57]}  b5 {[%clk 0:02:59]} 4. Bg2 {[%clk 0:02:57]}  Bb7 {[%clk 0:02:59]} 5. O-O {[%clk 0:02:58]}  c5 {[%clk 0:03:00]} 6. Bg5 {[%clk 0:02:57]}  Na6 {[%clk 0:02:59]} 7. c3 {[%clk 0:02:38]}  Be7 {[%clk 0:02:58]} 8. Nbd2 {[%clk 0:02:34]}  O-O {[%clk 0:02:57]} 9. a4 {[%clk 0:02:34]}  b4 {[%clk 0:02:57]} 10. Nb3 {[%clk 0:02:25]}  bxc3 {[%clk 0:02:56]} 11. bxc3 {[%clk 0:02:23]}  cxd4 {[%clk 0:02:56]} 12. cxd4 {[%clk 0:02:18]}  Nb4 {[%clk 0:02:55]} 13. Nc5 {[%clk 0:02:04]}  Bd5 {[%clk 0:02:54]} 14. a5 {[%clk 0:01:54]}  h6 {[%clk 0:02:53]} 15. Bxf6 {[%clk 0:01:47]}  Bxf6 {[%clk 0:02:53]} 16. e4 {[%clk 0:01:46]}  Bc6 {[%clk 0:02:39]} 17. e5 {[%clk 0:01:46]}  Be7 {[%clk 0:02:39]} 18. Nd2 {[%clk 0:01:33]}  Bxg2 {[%clk 0:02:38]} 19. Kxg2 {[%clk 0:01:33]}  Bxc5 {[%clk 0:02:37]} 20. dxc5 {[%clk 0:01:33]}  Qc7 {[%clk 0:02:37]} 21. Qg4 {[%clk 0:01:15]}  Qxc5 {[%clk 0:02:14]} 22. Ne4 {[%clk 0:00:46]}  Qc6 {[%clk 0:02:06]} 23. Kg1 {[%clk 0:00:42]}  Nd3 {[%clk 0:01:56]} 24. Nf6+ {[%clk 0:00:35]}  Kh8 {[%clk 0:01:55]} 25. Nh5 {[%clk 0:00:35]}  g6 {[%clk 0:01:39]} 26. Rad1 {[%clk 0:00:18]}  Nxe5 {[%clk 0:01:37]} 27. Qd4 {[%clk 0:00:10]}  f6 {[%clk 0:01:37]} 28. f4 {[%clk 0:00:06]}  Ng4 {[%clk 0:01:12]} 29. h3 {[%clk 0:00:05]}  gxh5 {[%clk 0:01:01]} 30. hxg4 {[%clk 0:00:06]}  hxg4 {[%clk 0:01:01]} 31. Qxd7 {[%clk 0:00:06]}  Qxd7 {[%clk 0:00:51]} 32. Rxd7 {[%clk 0:00:06]}  Kg8 {[%clk 0:00:51]} 33. Rc1 {[%clk 0:00:06]}  Rf7 {[%clk 0:00:51]} 34. Rcc7 {[%clk 0:00:05]}  Rxd7 {[%clk 0:00:48]} 35. Rxd7 {[%clk 0:00:05]}  a6 {[%clk 0:00:38]} 36. Rd6 {[%clk 0:00:04]}  Kf7 {[%clk 0:00:37]} 37. Rd7+ {[%clk 0:00:04]}  Kg6 {[%clk 0:00:37]} 38. Rd6 {[%clk 0:00:04]}  Kf5 {[%clk 0:00:38]} 39. Kf2 {[%clk 0:00:04]}  h5 {[%clk 0:00:37]} 40. Ke3 {[%clk 0:00:03]}  Rc8 {[%clk 0:00:28]} 41. Rxa6 {[%clk 0:00:03]}  Rc3+ {[%clk 0:00:28]} 42. Kf2 {[%clk 0:00:04]}  Ra3 {[%clk 0:00:28]} 43. Ra8 {[%clk 0:00:04]}  h4 {[%clk 0:00:27]} 44. gxh4 {[%clk 0:00:03]}  Kxf4 {[%clk 0:00:27]} 45. a6 {[%clk 0:00:03]}  Ra2+ {[%clk 0:00:28]} 46. Kg1 {[%clk 0:00:02]}  f5 {[%clk 0:00:26]} 47. a7 {[%clk 0:00:02]}  Kg3 {[%clk 0:00:25]} 48. Kf1 {[%clk 0:00:02]}  f4 {[%clk 0:00:25]} 49. Ke1 {[%clk 0:00:02]}  f3 {[%clk 0:00:25]} 0-1


[Site "https://www.chess.com"]

[Event "Titled Tuesday Blitz May 30 Late 2023"]
[White "Kaplan, Avi Harrison"]
[Black "Aldokhin, Ivan"]
[WhiteFideId "30934559"]
[BlackFideId "24115720"]
[WhiteElo "1983"]
[BlackElo "2322"]
[Result "0-1"]
[Round "08"]
[TimeControl "180+2"]
[Date "2023.05.31"]
[WhiteClock "0:01:38"]
[BlackClock "0:01:46"]

1. g3 {[%clk 0:02:57]}  Nf6 {[%clk 0:02:59]} 2. Bg2 {[%clk 0:02:57]}  g6 {[%clk 0:02:59]} 3. d3 {[%clk 0:02:57]}  Bg7 {[%clk 0:02:59]} 4. Nf3 {[%clk 0:02:58]}  O-O {[%clk 0:03:00]} 5. O-O {[%clk 0:02:58]}  Nc6 {[%clk 0:03:00]} 6. c4 {[%clk 0:02:58]}  d5 {[%clk 0:02:59]} 7. cxd5 {[%clk 0:02:46]}  Nxd5 {[%clk 0:03:00]} 8. a3 {[%clk 0:02:47]}  h6 {[%clk 0:02:56]} 9. Qc2 {[%clk 0:02:45]}  e5 {[%clk 0:02:52]} 10. Nc3 {[%clk 0:02:43]}  Nde7 {[%clk 0:02:52]} 11. Bd2 {[%clk 0:02:39]}  g5 {[%clk 0:02:52]} 12. Rac1 {[%clk 0:02:37]}  g4 {[%clk 0:02:52]} 13. Nh4 {[%clk 0:02:36]}  Nd4 {[%clk 0:02:52]} 14. Qd1 {[%clk 0:02:35]}  Be6 {[%clk 0:02:49]} 15. e3 {[%clk 0:02:07]}  Nb3 {[%clk 0:02:49]} 16. Rc2 {[%clk 0:02:05]}  Qxd3 {[%clk 0:02:44]} 17. Bxb7 {[%clk 0:02:03]}  Rad8 {[%clk 0:02:24]} 18. Bc1 {[%clk 0:01:51]}  Bc4 {[%clk 0:01:48]} 19. Qd2 {[%clk 0:01:38]}  Qxf1# {[%clk 0:01:46]} 0-1


[Site "https://www.chess.com"]

[Event "Titled Tuesday Blitz May 30 Late 2023"]
[White "Tanenbaum, Zachary"]
[Black "SergioMoralesG"]
[WhiteFideId "2060850"]
[WhiteElo "2175"]
[BlackElo "2524"]
[Result "0-1"]
[Round "08"]
[TimeControl "180+2"]
[Date "2023.05.31"]
[WhiteClock "0:00:06"]
[BlackClock "0:00:10"]

1. e4 {[%clk 0:03:00]}  c5 {[%clk 0:02:59]} 2. Nf3 {[%clk 0:03:00]}  d6 {[%clk 0:02:59]} 3. d4 {[%clk 0:03:01]}  cxd4 {[%clk 0:02:59]} 4. Nxd4 {[%clk 0:03:02]}  Nf6 {[%clk 0:02:59]} 5. Nc3 {[%clk 0:03:02]}  a6 {[%clk 0:03:00]} 6. Be3 {[%clk 0:03:02]}  e5 {[%clk 0:03:00]} 7. Nb3 {[%clk 0:03:01]}  Be6 {[%clk 0:03:00]} 8. f4 {[%clk 0:03:00]}  exf4 {[%clk 0:02:56]} 9. Bxf4 {[%clk 0:03:01]}  Be7 {[%clk 0:02:55]} 10. Qe2 {[%clk 0:02:59]}  Nc6 {[%clk 0:02:50]} 11. h3 {[%clk 0:02:58]}  Ne5 {[%clk 0:02:48]} 12. O-O-O {[%clk 0:02:57]}  Qc7 {[%clk 0:02:47]} 13. Kb1 {[%clk 0:02:56]}  Rc8 {[%clk 0:02:46]} 14. g4 {[%clk 0:02:55]}  O-O {[%clk 0:02:39]} 15. g5 {[%clk 0:02:53]}  Nfd7 {[%clk 0:02:36]} 16. Qg2 {[%clk 0:02:53]}  Nb6 {[%clk 0:02:25]} 17. Nd5 {[%clk 0:02:44]}  Nxd5 {[%clk 0:02:22]} 18. exd5 {[%clk 0:02:45]}  Bf5 {[%clk 0:02:22]} 19. Nd4 {[%clk 0:02:44]}  Bd7 {[%clk 0:02:10]} 20. h4 {[%clk 0:02:40]}  Qb6 {[%clk 0:01:57]} 21. Be3 {[%clk 0:01:58]}  Rc5 {[%clk 0:01:40]} 22. Nb3 {[%clk 0:01:55]}  Bf5 {[%clk 0:01:34]} 23. Nxc5 {[%clk 0:01:36]}  dxc5 {[%clk 0:01:34]} 24. d6 {[%clk 0:01:23]}  Bxd6 {[%clk 0:01:29]} 25. Qd5 {[%clk 0:01:22]}  Bb8 {[%clk 0:00:54]} 26. Bxc5 {[%clk 0:01:11]}  Qg6 {[%clk 0:00:54]} 27. Rh2 {[%clk 0:00:52]}  Re8 {[%clk 0:00:49]} 28. Re2 {[%clk 0:00:39]}  Bg4 {[%clk 0:00:43]} 29. Rxe5 {[%clk 0:00:32]}  Bxe5 {[%clk 0:00:34]} 30. Qxe5 {[%clk 0:00:32]}  Qxc2+ {[%clk 0:00:28]} 31. Kxc2 {[%clk 0:00:30]}  Bxd1+ {[%clk 0:00:28]} 32. Kxd1 {[%clk 0:00:31]}  Rxe5 {[%clk 0:00:29]} 33. Bf2 {[%clk 0:00:26]}  f6 {[%clk 0:00:18]} 34. Bc4+ {[%clk 0:00:21]}  Kf8 {[%clk 0:00:17]} 35. gxf6 {[%clk 0:00:20]}  gxf6 {[%clk 0:00:18]} 36. Kd2 {[%clk 0:00:18]}  Rf5 {[%clk 0:00:12]} 37. Bg3 {[%clk 0:00:16]}  Ke7 {[%clk 0:00:10]} 38. Bd3 {[%clk 0:00:14]}  Rd5 {[%clk 0:00:10]} 39. Ke3 {[%clk 0:00:14]}  h5 {[%clk 0:00:09]} 40. Be4 {[%clk 0:00:13]}  Rb5 {[%clk 0:00:09]} 41. b3 {[%clk 0:00:13]}  Ke6 {[%clk 0:00:08]} 42. Bd3 {[%clk 0:00:12]}  Rc5 {[%clk 0:00:07]} 43. b4 {[%clk 0:00:12]}  Rc1 {[%clk 0:00:06]} 44. Kd4 {[%clk 0:00:10]}  b5 {[%clk 0:00:06]} 45. a3 {[%clk 0:00:09]}  Ra1 {[%clk 0:00:05]} 46. Bc7 {[%clk 0:00:08]}  Rxa3 {[%clk 0:00:04]} 47. Ba5 {[%clk 0:00:09]}  Ra1 {[%clk 0:00:04]} 48. Bg6 {[%clk 0:00:07]}  Rh1 {[%clk 0:00:03]} 49. Bxh5 {[%clk 0:00:08]}  Rxh4+ {[%clk 0:00:03]} 50. Kc5 {[%clk 0:00:08]}  Rxh5+ {[%clk 0:00:04]} 51. Kb6 {[%clk 0:00:08]}  f5 {[%clk 0:00:04]} 52. Kxa6 {[%clk 0:00:08]}  f4 {[%clk 0:00:04]} 53. Bb6 {[%clk 0:00:08]}  f3 {[%clk 0:00:04]} 54. Bc5 {[%clk 0:00:09]}  Rd5 {[%clk 0:00:04]} 55. Kxb5 {[%clk 0:00:08]}  f2 {[%clk 0:00:04]} 56. Kc6 {[%clk 0:00:09]}  Rxc5+ {[%clk 0:00:04]} 57. bxc5 {[%clk 0:00:08]}  f1=Q {[%clk 0:00:05]} 58. Kb7 {[%clk 0:00:09]}  Qb1+ {[%clk 0:00:05]} 59. Kc7 {[%clk 0:00:08]}  Qc2 {[%clk 0:00:06]} 60. c6 {[%clk 0:00:08]}  Kd5 {[%clk 0:00:06]} 61. Kb6 {[%clk 0:00:08]}  Qxc6+ {[%clk 0:00:07]} 62. Ka7 {[%clk 0:00:08]}  Qd6 {[%clk 0:00:07]} 63. Kb7 {[%clk 0:00:07]}  Kc5 {[%clk 0:00:07]} 64. Ka7 {[%clk 0:00:07]}  Kb5 {[%clk 0:00:08]} 65. Ka8 {[%clk 0:00:06]}  Qe7 {[%clk 0:00:09]} 66. Kb8 {[%clk 0:00:06]}  Kb6 {[%clk 0:00:10]} 67. Ka8 {[%clk 0:00:06]}  Qe8# {[%clk 0:00:10]} 0-1


[Site "https://www.chess.com"]

[Event "Titled Tuesday Blitz May 30 Late 2023"]
[White "Timmermans, Mark"]
[Black "Liu, Casper"]
[WhiteFideId "1026399"]
[BlackFideId "1454153"]
[WhiteElo "2460"]
[BlackElo "2221"]
[Result "1-0"]
[Round "08"]
[TimeControl "180+2"]
[Date "2023.05.31"]
[WhiteClock "0:00:31"]
[BlackClock "0:00:07"]

1. e4 {[%clk 0:03:00]}  c5 {[%clk 0:02:59]} 2. Nf3 {[%clk 0:02:57]}  d6 {[%clk 0:03:00]} 3. d4 {[%clk 0:02:58]}  cxd4 {[%clk 0:03:00]} 4. Nxd4 {[%clk 0:02:58]}  Nf6 {[%clk 0:03:01]} 5. Nc3 {[%clk 0:02:58]}  Nc6 {[%clk 0:03:02]} 6. Nd5 {[%clk 0:02:55]}  e6 {[%clk 0:02:54]} 7. Nxf6+ {[%clk 0:02:55]}  Qxf6 {[%clk 0:02:54]} 8. Nb5 {[%clk 0:02:52]}  Qd8 {[%clk 0:02:48]} 9. Bf4 {[%clk 0:02:49]}  e5 {[%clk 0:02:43]} 10. Be3 {[%clk 0:02:49]}  a6 {[%clk 0:02:39]} 11. Nc3 {[%clk 0:02:49]}  Be7 {[%clk 0:02:38]} 12. Nd5 {[%clk 0:02:46]}  O-O {[%clk 0:02:29]} 13. Qd2 {[%clk 0:02:44]}  Be6 {[%clk 0:02:28]} 14. c3 {[%clk 0:02:44]}  f5 {[%clk 0:02:16]} 15. exf5 {[%clk 0:02:27]}  Bxf5 {[%clk 0:02:12]} 16. Bd3 {[%clk 0:02:27]}  e4 {[%clk 0:01:47]} 17. Bc2 {[%clk 0:02:05]}  Ne5 {[%clk 0:01:46]} 18. O-O-O {[%clk 0:01:36]}  Nc4 {[%clk 0:01:39]} 19. Qd4 {[%clk 0:01:34]}  Nxe3 {[%clk 0:01:34]} 20. Nxe3 {[%clk 0:01:34]}  Bg5 {[%clk 0:01:07]} 21. Kb1 {[%clk 0:01:34]}  Bxe3 {[%clk 0:01:03]} 22. fxe3 {[%clk 0:01:27]}  d5 {[%clk 0:00:54]} 23. Bb3 {[%clk 0:01:12]}  Kh8 {[%clk 0:00:48]} 24. Bxd5 {[%clk 0:01:11]}  Qg5 {[%clk 0:00:43]} 25. h4 {[%clk 0:01:07]}  Qg4 {[%clk 0:00:38]} 26. Bxb7 {[%clk 0:01:03]}  Rab8 {[%clk 0:00:38]} 27. Bd5 {[%clk 0:01:03]}  Qxg2 {[%clk 0:00:33]} 28. Bb3 {[%clk 0:01:03]}  Bg4 {[%clk 0:00:26]} 29. Rhg1 {[%clk 0:00:52]}  Qe2 {[%clk 0:00:25]} 30. Rd2 {[%clk 0:00:49]}  Qf3 {[%clk 0:00:22]} 31. h5 {[%clk 0:00:46]}  Qh3 {[%clk 0:00:21]} 32. Rdg2 {[%clk 0:00:45]}  Rbd8 {[%clk 0:00:10]} 33. Bd5 {[%clk 0:00:45]}  Rf1+ {[%clk 0:00:05]} 34. Rxf1 {[%clk 0:00:41]}  Qxg2 {[%clk 0:00:05]} 35. Bc4 {[%clk 0:00:38]}  Qxf1+ {[%clk 0:00:02]} 36. Bxf1 {[%clk 0:00:38]}  Rxd4 {[%clk 0:00:03]} 37. cxd4 {[%clk 0:00:36]}  Bxh5 {[%clk 0:00:03]} 38. Bxa6 {[%clk 0:00:36]}  Bf3 {[%clk 0:00:03]} 39. Bc8 {[%clk 0:00:33]}  g5 {[%clk 0:00:04]} 40. a4 {[%clk 0:00:32]}  g4 {[%clk 0:00:04]} 41. a5 {[%clk 0:00:32]}  g3 {[%clk 0:00:05]} 42. Bh3 {[%clk 0:00:33]}  Bg4 {[%clk 0:00:04]} 43. Bg2 {[%clk 0:00:31]}  Bf3 {[%clk 0:00:05]} 44. a6 {[%clk 0:00:32]}  Bxg2 {[%clk 0:00:05]} 45. a7 {[%clk 0:00:32]}  Bf3 {[%clk 0:00:05]} 46. a8=Q+ {[%clk 0:00:33]}  Kg7 {[%clk 0:00:06]} 47. Qb8 {[%clk 0:00:31]}  g2 {[%clk 0:00:07]} 48. Qh2 {[%clk 0:00:31]} 1-0


[Site "https://www.chess.com"]

[Event "Titled Tuesday Blitz May 30 Late 2023"]
[White "Toncheva, Nadya"]
[Black "Bernabeu Lopez, Carlos Javier"]
[WhiteFideId "2924056"]
[BlackFideId "2235366"]
[WhiteElo "2101"]
[BlackElo "2344"]
[Result "1/2-1/2"]
[Round "08"]
[TimeControl "180+2"]
[Date "2023.05.31"]
[WhiteClock "0:00:06"]
[BlackClock "0:01:15"]

1. d4 {[%clk 0:03:00]}  Nf6 {[%clk 0:02:59]} 2. c4 {[%clk 0:03:01]}  g6 {[%clk 0:03:00]} 3. Nc3 {[%clk 0:03:01]}  Bg7 {[%clk 0:03:00]} 4. e4 {[%clk 0:03:01]}  d6 {[%clk 0:03:01]} 5. Be2 {[%clk 0:03:02]}  O-O {[%clk 0:03:01]} 6. Bg5 {[%clk 0:03:02]}  c5 {[%clk 0:02:58]} 7. d5 {[%clk 0:03:00]}  b5 {[%clk 0:02:58]} 8. cxb5 {[%clk 0:02:58]}  a6 {[%clk 0:02:59]} 9. bxa6 {[%clk 0:02:57]}  Qa5 {[%clk 0:02:57]} 10. Qd2 {[%clk 0:02:49]}  Bxa6 {[%clk 0:02:56]} 11. Bxa6 {[%clk 0:02:47]}  Qxa6 {[%clk 0:02:57]} 12. Nge2 {[%clk 0:02:46]}  Nbd7 {[%clk 0:02:56]} 13. O-O {[%clk 0:02:45]}  Rfb8 {[%clk 0:02:56]} 14. Rab1 {[%clk 0:02:39]}  Ne5 {[%clk 0:02:54]} 15. b3 {[%clk 0:02:36]}  Qd3 {[%clk 0:02:54]} 16. Qxd3 {[%clk 0:02:31]}  Nxd3 {[%clk 0:02:55]} 17. Rfd1 {[%clk 0:02:19]}  Nb4 {[%clk 0:02:52]} 18. a4 {[%clk 0:02:18]}  h6 {[%clk 0:02:52]} 19. Bf4 {[%clk 0:02:03]}  Nd7 {[%clk 0:02:48]} 20. Nb5 {[%clk 0:01:53]}  Ne5 {[%clk 0:02:40]} 21. Nc1 {[%clk 0:01:43]}  Rb7 {[%clk 0:02:33]} 22. h3 {[%clk 0:01:35]}  g5 {[%clk 0:02:27]} 23. Be3 {[%clk 0:01:34]}  Nc2 {[%clk 0:02:24]} 24. Bd2 {[%clk 0:01:26]}  Rab8 {[%clk 0:02:14]} 25. Kf1 {[%clk 0:01:23]}  Ra8 {[%clk 0:02:03]} 26. Bc3 {[%clk 0:01:21]}  c4 {[%clk 0:01:59]} 27. Bxe5 {[%clk 0:00:48]}  Bxe5 {[%clk 0:02:00]} 28. bxc4 {[%clk 0:00:45]}  Rxa4 {[%clk 0:01:59]} 29. Nd3 {[%clk 0:00:42]}  Rxc4 {[%clk 0:01:58]} 30. Nxe5 {[%clk 0:00:41]}  dxe5 {[%clk 0:01:59]} 31. d6 {[%clk 0:00:31]}  exd6 {[%clk 0:02:00]} 32. Nxd6 {[%clk 0:00:31]}  Rxb1 {[%clk 0:02:01]} 33. Rxb1 {[%clk 0:00:31]}  Rd4 {[%clk 0:01:59]} 34. Rb8+ {[%clk 0:00:24]}  Kh7 {[%clk 0:01:59]} 35. Nxf7 {[%clk 0:00:22]}  Rxe4 {[%clk 0:01:58]} 36. g3 {[%clk 0:00:22]}  Re1+ {[%clk 0:01:50]} 37. Kg2 {[%clk 0:00:22]}  e4 {[%clk 0:01:51]} 38. Rb6 {[%clk 0:00:22]}  e3 {[%clk 0:01:50]} 39. fxe3 {[%clk 0:00:20]}  Re2+ {[%clk 0:01:45]} 40. Kf3 {[%clk 0:00:16]}  Rxe3+ {[%clk 0:01:45]} 41. Kf2 {[%clk 0:00:16]}  Re7 {[%clk 0:01:32]} 42. Nxh6 {[%clk 0:00:16]}  Nd4 {[%clk 0:01:32]} 43. Ng4 {[%clk 0:00:16]}  Re2+ {[%clk 0:01:33]} 44. Kf1 {[%clk 0:00:16]}  Ra2 {[%clk 0:01:32]} 45. Rb7+ {[%clk 0:00:16]}  Kg6 {[%clk 0:01:30]} 46. Rb6+ {[%clk 0:00:16]}  Kg7 {[%clk 0:01:30]} 47. h4 {[%clk 0:00:14]}  gxh4 {[%clk 0:01:27]} 48. gxh4 {[%clk 0:00:15]}  Nf5 {[%clk 0:01:27]} 49. h5 {[%clk 0:00:13]}  Ng3+ {[%clk 0:01:26]} 50. Ke1 {[%clk 0:00:13]}  Nxh5 {[%clk 0:01:26]} 51. Ne5 {[%clk 0:00:12]}  Nf4 {[%clk 0:01:25]} 52. Rb7+ {[%clk 0:00:12]}  Kf6 {[%clk 0:01:26]} 53. Nf3 {[%clk 0:00:12]}  Nd3+ {[%clk 0:01:23]} 54. Kd1 {[%clk 0:00:12]}  Kf5 {[%clk 0:01:22]} 55. Nd2 {[%clk 0:00:08]}  Nf2+ {[%clk 0:01:20]} 56. Ke2 {[%clk 0:00:08]}  Ne4 {[%clk 0:01:21]} 57. Rd7 {[%clk 0:00:08]}  Ke6 {[%clk 0:01:18]} 58. Rd8 {[%clk 0:00:07]}  Nc3+ {[%clk 0:01:15]} 59. Ke3 {[%clk 0:00:07]}  Nb5 {[%clk 0:01:16]} 60. Re8+ {[%clk 0:00:07]}  Kd7 {[%clk 0:01:16]} 61. Rh8 {[%clk 0:00:07]}  Nd6 {[%clk 0:01:16]} 62. Rh7+ {[%clk 0:00:06]}  Kc6 {[%clk 0:01:16]} 63. Ne4 {[%clk 0:00:07]}  Ra3+ {[%clk 0:01:17]} 64. Kf4 {[%clk 0:00:05]}  Ra4 {[%clk 0:01:17]} 65. Re7 {[%clk 0:00:06]}  Kd5 {[%clk 0:01:18]} 66. Re5+ {[%clk 0:00:05]}  Kc6 {[%clk 0:01:18]} 67. Re6 {[%clk 0:00:06]}  Kc7 {[%clk 0:01:14]} 68. Rxd6 {[%clk 0:00:06]}  Rxe4+ {[%clk 0:01:15]} 69. Kxe4 {[%clk 0:00:06]}  Kxd6 {[%clk 0:01:15]} 1/2-1/2


[Site "https://www.chess.com"]

[Event "Titled Tuesday Blitz May 30 Late 2023"]
[White "Zhao, Erick"]
[Black "Jovic, Stanoje"]
[WhiteFideId "30946930"]
[BlackFideId "905020"]
[WhiteElo "2605"]
[BlackElo "2236"]
[Result "1-0"]
[Round "08"]
[TimeControl "180+2"]
[Date "2023.05.31"]
[WhiteClock "0:00:26"]
[BlackClock "0:00:05"]

1. c4 {[%clk 0:03:00]}  e5 {[%clk 0:02:59]} 2. Nc3 {[%clk 0:03:00]}  Nf6 {[%clk 0:02:58]} 3. e3 {[%clk 0:02:59]}  Nc6 {[%clk 0:02:56]} 4. d4 {[%clk 0:02:59]}  exd4 {[%clk 0:02:54]} 5. exd4 {[%clk 0:03:00]}  d5 {[%clk 0:02:51]} 6. cxd5 {[%clk 0:02:53]}  Nxd5 {[%clk 0:02:50]} 7. Nf3 {[%clk 0:02:54]}  Bb4 {[%clk 0:02:43]} 8. Bd2 {[%clk 0:02:51]}  O-O {[%clk 0:02:42]} 9. Be2 {[%clk 0:02:51]}  Bg4 {[%clk 0:02:38]} 10. O-O {[%clk 0:02:49]}  Re8 {[%clk 0:02:38]} 11. h3 {[%clk 0:02:47]}  Bh5 {[%clk 0:02:17]} 12. a3 {[%clk 0:02:42]}  Nxc3 {[%clk 0:02:12]} 13. bxc3 {[%clk 0:02:42]}  Bd6 {[%clk 0:02:09]} 14. Re1 {[%clk 0:02:39]}  h6 {[%clk 0:02:05]} 15. Rb1 {[%clk 0:02:31]}  Rb8 {[%clk 0:02:02]} 16. Rb5 {[%clk 0:02:28]}  Bg6 {[%clk 0:01:59]} 17. a4 {[%clk 0:02:26]}  a6 {[%clk 0:01:58]} 18. Rb2 {[%clk 0:02:21]}  Qf6 {[%clk 0:01:57]} 19. Be3 {[%clk 0:02:20]}  Ne7 {[%clk 0:01:38]} 20. Ne5 {[%clk 0:01:59]}  Bxe5 {[%clk 0:01:34]} 21. dxe5 {[%clk 0:02:00]}  Qxe5 {[%clk 0:01:34]} 22. Bd4 {[%clk 0:02:01]}  Qa5 {[%clk 0:01:22]} 23. Bf3 {[%clk 0:01:56]}  b6 {[%clk 0:01:01]} 24. Rbe2 {[%clk 0:01:54]}  Kf8 {[%clk 0:00:52]} 25. Qa1 {[%clk 0:01:40]}  Nf5 {[%clk 0:00:41]} 26. Qa3+ {[%clk 0:01:34]}  c5 {[%clk 0:00:39]} 27. Be5 {[%clk 0:01:32]}  Rbd8 {[%clk 0:00:31]} 28. g4 {[%clk 0:01:11]}  Ne7 {[%clk 0:00:22]} 29. c4 {[%clk 0:01:09]}  Rd3 {[%clk 0:00:19]} 30. Qb2 {[%clk 0:01:03]}  Rxf3 {[%clk 0:00:18]} 31. Bxg7+ {[%clk 0:01:03]}  Kg8 {[%clk 0:00:18]} 32. Rxe7 {[%clk 0:01:04]}  Rxe7 {[%clk 0:00:14]} 33. Rxe7 {[%clk 0:01:04]}  f6 {[%clk 0:00:12]} 34. Bxf6 {[%clk 0:01:01]}  Qb4 {[%clk 0:00:10]} 35. Rg7+ {[%clk 0:00:49]}  Kf8 {[%clk 0:00:10]} 36. Qe5 {[%clk 0:00:32]}  Qb1+ {[%clk 0:00:10]} 37. Kg2 {[%clk 0:00:33]}  Qe4 {[%clk 0:00:07]} 38. Qb8+ {[%clk 0:00:26]}  Qe8 {[%clk 0:00:05]} 39. Qd6+ {[%clk 0:00:26]} 1-0


[Site "https://www.chess.com"]

[Event "Titled Tuesday Blitz May 30 Late 2023"]
[White "Krishnan, Varun"]
[Black "Rottenwohrer Suarez, Juan"]
[WhiteFideId "5054508"]
[BlackFideId "32068182"]
[WhiteElo "2600"]
[BlackElo "2174"]
[Result "0-1"]
[Round "08"]
[TimeControl "180+2"]
[Date "2023.05.31"]
[WhiteClock "0:00:52"]
[BlackClock "0:00:45"]

1. d4 {[%clk 0:03:00]}  Nf6 {[%clk 0:02:59]} 2. c4 {[%clk 0:02:57]}  g6 {[%clk 0:02:59]} 3. Nc3 {[%clk 0:02:54]}  Bg7 {[%clk 0:03:00]} 4. e4 {[%clk 0:02:47]}  d6 {[%clk 0:03:00]} 5. Nf3 {[%clk 0:02:46]}  O-O {[%clk 0:03:00]} 6. Be2 {[%clk 0:02:46]}  e5 {[%clk 0:03:00]} 7. O-O {[%clk 0:02:46]}  Nc6 {[%clk 0:03:01]} 8. d5 {[%clk 0:02:42]}  Ne7 {[%clk 0:03:01]} 9. Ne1 {[%clk 0:02:41]}  Nd7 {[%clk 0:02:49]} 10. Be3 {[%clk 0:02:39]}  f5 {[%clk 0:02:50]} 11. f3 {[%clk 0:02:38]}  f4 {[%clk 0:02:50]} 12. Bf2 {[%clk 0:02:37]}  g5 {[%clk 0:02:51]} 13. b4 {[%clk 0:02:32]}  Rf6 {[%clk 0:02:44]} 14. c5 {[%clk 0:02:30]}  Rh6 {[%clk 0:02:44]} 15. Rc1 {[%clk 0:02:22]}  a6 {[%clk 0:02:42]} 16. Qb3 {[%clk 0:02:11]}  Qe8 {[%clk 0:02:38]} 17. c6 {[%clk 0:02:09]}  Qh5 {[%clk 0:02:37]} 18. h3 {[%clk 0:02:07]}  Nb6 {[%clk 0:02:27]} 19. cxb7 {[%clk 0:02:07]}  Bxh3 {[%clk 0:02:24]} 20. bxa8=Q+ {[%clk 0:01:56]}  Nxa8 {[%clk 0:02:23]} 21. Ba7 {[%clk 0:01:29]}  Qh4 {[%clk 0:01:20]} 22. Bf2 {[%clk 0:01:21]}  Qh5 {[%clk 0:01:20]} 23. Ba7 {[%clk 0:01:19]}  Qh4 {[%clk 0:01:20]} 24. gxh3 {[%clk 0:00:59]}  Qxh3 {[%clk 0:01:10]} 25. Ng2 {[%clk 0:00:56]}  Qh2+ {[%clk 0:01:08]} 26. Kf2 {[%clk 0:00:56]}  Qg3+ {[%clk 0:01:05]} 27. Kg1 {[%clk 0:00:56]}  Rh2 {[%clk 0:00:44]} 28. Rf2 {[%clk 0:00:52]}  Qh3 {[%clk 0:00:45]} 0-1


[Site "https://www.chess.com"]

[Event "Titled Tuesday Blitz May 30 Late 2023"]
[White "Adewumi, Tanitoluwa"]
[Black "Garakov, Mikhael"]
[WhiteFideId "30966396"]
[BlackFideId "4169034"]
[WhiteElo "2587"]
[BlackElo "2347"]
[Result "1-0"]
[Round "08"]
[TimeControl "180+2"]
[Date "2023.05.31"]
[WhiteClock "0:00:04"]
[BlackClock "0:00:02"]

1. e4 {[%clk 0:02:38]}  c5 {[%clk 0:02:59]} 2. Nf3 {[%clk 0:02:36]}  e6 {[%clk 0:02:59]} 3. c3 {[%clk 0:02:36]}  d5 {[%clk 0:02:38]} 4. exd5 {[%clk 0:02:36]}  Qxd5 {[%clk 0:02:38]} 5. d4 {[%clk 0:02:37]}  Nf6 {[%clk 0:02:36]} 6. Na3 {[%clk 0:02:37]}  Nc6 {[%clk 0:02:34]} 7. Be3 {[%clk 0:02:36]}  cxd4 {[%clk 0:02:34]} 8. Nb5 {[%clk 0:02:36]}  Qd8 {[%clk 0:02:34]} 9. Nbxd4 {[%clk 0:02:35]}  Nxd4 {[%clk 0:02:26]} 10. Bxd4 {[%clk 0:02:34]}  Be7 {[%clk 0:02:25]} 11. Bd3 {[%clk 0:02:34]}  O-O {[%clk 0:02:24]} 12. h4 {[%clk 0:02:33]}  Bd7 {[%clk 0:01:33]} 13. Qe2 {[%clk 0:02:08]}  Bc6 {[%clk 0:01:30]} 14. O-O-O {[%clk 0:01:35]}  Qa5 {[%clk 0:01:30]} 15. Kb1 {[%clk 0:01:22]}  b5 {[%clk 0:01:28]} 16. Ng5 {[%clk 0:01:04]}  Bd5 {[%clk 0:01:14]} 17. b3 {[%clk 0:00:56]}  h6 {[%clk 0:00:58]} 18. Bc2 {[%clk 0:00:36]}  Rfd8 {[%clk 0:00:32]} 19. Qd3 {[%clk 0:00:11]}  e5 {[%clk 0:00:32]} 20. Bxe5 {[%clk 0:00:06]}  Bxb3 {[%clk 0:00:31]} 21. Bxb3 {[%clk 0:00:05]}  Rxd3 {[%clk 0:00:30]} 22. Rxd3 {[%clk 0:00:06]}  hxg5 {[%clk 0:00:24]} 23. hxg5 {[%clk 0:00:07]}  Nh7 {[%clk 0:00:16]} 24. g6 {[%clk 0:00:04]}  Bf6 {[%clk 0:00:06]} 25. Bxf7+ {[%clk 0:00:03]}  Kf8 {[%clk 0:00:06]} 26. Bd6+ {[%clk 0:00:03]}  Be7 {[%clk 0:00:06]} 27. Rxh7 {[%clk 0:00:04]}  Bxd6 {[%clk 0:00:06]} 28. Re3 {[%clk 0:00:04]}  Be5 {[%clk 0:00:02]} 29. Rxe5 {[%clk 0:00:04]} 1-0


[Site "https://www.chess.com"]